fUSD/lending_fUSD_20240613
["ID","MTS","AMOUNT","RATE_DAILY","PERIOD"]
[329355331,1718277066758,-1207.15,0.00024773,3]
[329355332,1718277066770,-151.0,0.00024773,7]
[329355333,1718277066783,-151.0,0.00024773,7]
[329355334,1718277066795,-550.40076692,0.00024773,3]
[329355335,1718277066812,-500.0,0.00024773,3]
[329355336,1718277066823,-173.429652,0.00024773,7]
[329355337,1718277066834,-500.0,0.00024773,3]
[329355338,1718277066847,-500.0,0.00024773,3]
[329355339,1718277066960,-151.0,0.00024773,7]
[329355340,1718277066976,-940.28,0.00024773,3]
[329355341,1718277066988,-500.0,0.00024773,3]
[329355342,1718277067004,-500.0,0.00024773,3]
[329355343,1718277067020,-541.48661213,0.00024773,3]
[329355344,1718277067034,-633.48,0.00024773,3]
[329355345,1718277067051,-456.15351683,0.00024773,3]
[329355346,1718277067064,-1695.46,0.00024773,3]
[329355347,1718277067084,-362.09153126,0.00024773,3]
[329355348,1718277067104,-500.0,0.00024773,3]
[329355349,1718277067121,-1351.29,0.00024773,3]
[329355350,1718277067133,-228.27067797,0.00024773,3]
[329355351,1718277067144,-521.02439519,0.00024773,3]
[329355352,1718277067159,-500.0,0.00024773,3]
[329355353,1718277067186,-151.0,0.00024773,7]
[329355354,1718277067215,-977.95,0.00024773,3]
[329355355,1718277067226,-557.92,0.00024773,3]
[329355356,1718277067236,-500.0,0.00024773,3]
[329355357,1718277067246,-151.0,0.00024773,7]
[329355358,1718277067262,-609.71518758,0.00024773,3]
[329355359,1718277067294,-500.0,0.00024773,3]
[329355360,1718277067308,-151.0,0.00024773,7]
[329355361,1718277067320,-151.0,0.00024773,7]
[329355362,1718277067331,-151.0,0.00024773,7]
[329355363,1718277067346,-869.98,0.00024773,3]
[329355364,1718277067358,-2538.97,0.00024773,3]
[329355365,1718277067374,-184.4400754,0.00024773,3]
[329355366,1718277067387,-774.79,0.00024773,3]
[329355367,1718277067400,-515.88602822,0.00024773,3]
[329355368,1718277067412,-500.0,0.00024773,3]
[329355369,1718277067425,-193.018736,0.00024773,7]
[329355370,1718277067445,-500.0,0.00024773,3]
[329355371,1718277067469,-500.0,0.00024773,3]
[329355372,1718277067484,-500.0,0.00024773,3]
[329355373,1718277067498,-500.0,0.00024773,3]
[329355374,1718277067515,-869.72,0.00024773,3]
[329355375,1718277067530,-427.7605095,0.00024773,3]
[329355376,1718277067556,-500.0,0.00024773,3]
[329355377,1718277067572,-2643.48,0.00024773,3]
[329355378,1718277067590,-1050.99,0.00024773,3]
[329355379,1718277067605,-500.0,0.00024773,3]
[329355380,1718277067627,-508.76968442,0.00024773,3]
[329355381,1718277067643,-6022.3,0.00024773,3]
[329355382,1718277067658,-2325.51,0.00024773,3]
[329355383,1718277067675,-594.46,0.00024773,3]
[329355384,1718277067695,-542.85435797,0.00024773,3]
[329355385,1718277067709,-1340.93,0.00024773,3]
[329355386,1718277067722,-525.87,0.00024773,3]
[329355387,1718277067737,-592.66467926,0.00024773,3]
[329355388,1718277067749,-2801.14,0.00024773,3]
[329355389,1718277067764,-556.9,0.00024773,3]
[329355390,1718277067778,-1037.02,0.00024773,3]
[329355391,1718277067793,-788.09,0.00024773,3]
[329355392,1718277067806,-500.0,0.00024773,3]
[329355393,1718277067817,-1590.22,0.00024773,3]
[329355394,1718277067829,-531.16152625,0.00024773,3]
[329355395,1718277067845,-559.79814327,0.00024773,3]
[329355396,1718277067857,-639.90691318,0.00024773,3]
[329355397,1718277067871,-1299.11,0.00024773,3]
[329355398,1718277067884,-533.01842451,0.00024773,3]
[329355399,1718277067897,-500.0,0.00024773,3]
[329355400,1718277067910,-1761.78,0.00024773,3]
[329355401,1718277067923,-500.0,0.00024773,3]
[329355402,1718277067937,-500.0,0.00024773,3]
[329355403,1718277067952,-533.08242316,0.00024773,3]
[329355404,1718277067970,-1262.69,0.00024773,3]
[329355405,1718277067981,-585.00750802,0.00024773,3]
[329355406,1718277067992,-4418.73,0.00024773,3]
[329355407,1718277068006,-8305.14,0.00024773,3]
[329355408,1718277068020,-151.0,0.00024773,7]
[329355409,1718277068032,-350.19356424,0.00024773,3]
[329355410,1718277068045,-460.97307781,0.00024773,3]
[329355411,1718277068068,-500.0,0.00024773,3]
[329355412,1718277068090,-500.0,0.00024773,3]
[329355413,1718277068106,-535.62616037,0.00024773,3]
[329355414,1718277068130,-577.13,0.00024773,3]
[329355415,1718277068163,-1444.06,0.00024773,3]
[329355416,1718277068196,-500.0,0.00024773,3]
[329355417,1718277068228,-151.0,0.00024773,7]
[329355418,1718277068241,-725.83,0.00024773,3]
[329355419,1718277068265,-500.0,0.00024773,3]
[329355420,1718277068277,-1042.68,0.00024773,3]
[329355421,1718277068296,-151.0,0.00024773,7]
[329355422,1718277068311,-500.0,0.00024773,3]
[329355423,1718277068340,-500.0,0.00024773,3]
[329355424,1718277068365,-500.0,0.00024773,3]
[329355425,1718277068386,-561.12752618,0.00024773,3]
[329355426,1718277068401,-500.0,0.00024773,3]
[329355427,1718277068424,-3100.67,0.00024773,3]
[329355428,1718277068444,-500.0,0.00024773,3]
[329355429,1718277068457,-500.0,0.00024773,3]
[329355430,1718277068496,-154.49828941,0.00024773,3]
[329355431,1718277068516,-1727.08,0.00024773,3]
[329355432,1718277068534,-518.8,0.00024773,3]
[329355433,1718277068554,-513.34254493,0.00024773,3]
[329355434,1718277068565,-496.84223229,0.00024773,3]
[329355435,1718277068576,-500.0,0.00024773,3]
[329355436,1718277068587,-500.0,0.00024773,3]
[329355437,1718277068604,-500.0,0.00024773,3]
[329355438,1718277068618,-1122.65,0.00024773,3]
[329355439,1718277068629,-500.0,0.00024773,3]
[329355440,1718277068648,-1466.73,0.00024773,3]
[329355441,1718277068663,-500.0,0.00024773,3]
[329355442,1718277068680,-505.98,0.00024773,3]
[329355443,1718277068698,-500.0,0.00024773,3]
[329355444,1718277068713,-500.0,0.00024773,3]
[329355445,1718277068733,-1309.02,0.00024773,3]
[329355446,1718277068750,-500.0,0.00024773,3]
[329355447,1718277068770,-500.0,0.00024773,3]
[329355448,1718277068783,-662.75,0.00024773,3]
[329355449,1718277068796,-617.34,0.00024773,3]
[329355450,1718277068817,-500.0,0.00024773,3]
[329355451,1718277068856,-983.88,0.00024773,3]
[329355452,1718277068879,-500.0,0.00024773,3]
[329355453,1718277068915,-1386.52,0.00024773,3]
[329355454,1718277068965,-506.98456065,0.00024773,3]
[329355455,1718277068975,-1442.64,0.00024773,3]
[329355456,1718277068999,-600.59574081,0.00024773,3]
[329355457,1718277069017,-1828.6,0.00024773,3]
[329355458,1718277069050,-832.352126,0.00024773,7]
[329355459,1718277069064,-506.18877866,0.00024773,3]
[329355460,1718277069074,-551.48196237,0.00024773,3]
[329355461,1718277069092,-832.352126,0.00024773,7]
[329355462,1718277069111,-1892.77,0.00024773,3]
[329355463,1718277069137,-1002.34,0.00024773,3]
[329355464,1718277069149,-2616.45,0.00024773,3]
[329355465,1718277069169,-151.0,0.00024773,7]
[329355466,1718277069186,-505.55850052,0.00024773,3]
[329355467,1718277069212,-618.93875623,0.00024773,3]
[329355468,1718277069256,-500.0,0.00024773,3]
[329355469,1718277069282,-151.0,0.00024773,7]
[329355470,1718277069334,-1657.94,0.00024773,3]
[329355471,1718277069347,-1131.64,0.00024773,3]
[329355472,1718277069363,-1100.13,0.00024773,3]
[329355473,1718277069381,-500.0,0.00024773,3]
[329355474,1718277069394,-373.17090438,0.00024773,3]
[329355475,1718277069406,-500.0,0.00024773,3]
[329355476,1718277069418,-3181.1,0.00024773,3]
[329355477,1718277069429,-790.44,0.00024773,3]
[329355478,1718277069452,-500.0,0.00024773,3]
[329355479,1718277069475,-500.0,0.00024773,3]
[329355480,1718277069494,-160.045546,0.00024798,7]
[329355481,1718277069508,-151.0,0.00024798,7]
[329355482,1718277069522,-151.0,0.00024798,7]
[329355483,1718277069538,-151.0,0.00024798,7]
[329355484,1718277069553,-151.0,0.000248,7]
[329355485,1718277069564,-200.0,0.000248,2]
[329355486,1718277069581,-1200.0,0.000248,9]
[329355487,1718277069602,-1608.33890032,0.00024898,2]
[329355488,1718277069621,-3563.96,0.00024899,3]
[329355489,1718277069648,-151.0,0.000249,7]
[329355490,1718277069662,-151.0,0.000249,7]
[329355491,1718277069677,-160.11629443,0.000249,2]
[329355492,1718277069691,-200.0,0.000249,9]
[329355493,1718277069703,-432.95585061,0.000249,2]
[329355494,1718277069721,-1439.37668532,0.000249,2]
[329355495,1718277069732,-174.98775606,0.000249,2]
[329355496,1718277069745,-205.33682777,0.000249,4]
[329355497,1718277069760,-241.56699816,0.0002493,3]
[329355498,1718277069771,-1183.25,0.0002493,3]
[329355499,1718277069784,-500.0,0.0002493,3]
[329355500,1718277069796,-704.44,0.0002493,3]
[329355501,1718277069808,-500.0,0.0002493,3]
[329355502,1718277069829,-5852.16,0.0002493,3]
[329355503,1718277069846,-2891.73,0.0002493,3]
[329355504,1718277069875,-500.0,0.0002493,3]
[329355505,1718277069893,-1318.26,0.0002493,3]
[329355506,1718277069906,-2337.62,0.0002493,3]
[329355507,1718277069922,-1185.47,0.0002493,3]
[329355508,1718277069939,-500.0,0.0002493,3]
[329355509,1718277069954,-832.352126,0.0002493,7]
[329355510,1718277069968,-1475.74,0.0002493,3]
[329355511,1718277069980,-832.352126,0.0002493,7]
[329355512,1718277069995,-572.37,0.0002493,3]
[329355513,1718277070019,-151.0,0.0002493,7]
[329355514,1718277070039,-151.0,0.0002493,7]
[329355515,1718277070051,-500.0,0.0002493,3]
[329355516,1718277070066,-514.60353991,0.00024931,3]
[329355517,1718277070082,-565.57755534,0.00024931,3]
[329355518,1718277070095,-500.0,0.00024931,3]
[329355519,1718277070109,-500.0,0.00024931,3]
[329355520,1718277070126,-500.0,0.00024931,3]
[329355521,1718277070137,-237.91128563,0.00024931,3]
[329355522,1718277070150,-500.0,0.00024931,2]
[329355523,1718277070163,-500.0,0.00024931,2]
[329355524,1718277070175,-164.11166,0.00024931,7]
[329355525,1718277070187,-500.0,0.00024931,3]
[329355526,1718277070226,-500.0,0.00024931,3]
[329355527,1718277070238,-151.0,0.00024931,7]
[329355528,1718277070250,-500.0,0.00024931,3]
[329355529,1718277070265,-298.005156,0.00024931,7]
[329355530,1718277070279,-500.0,0.00024931,3]
[329355531,1718277070392,-337.98097898,0.00024931,3]
[329355532,1718277070403,-500.0,0.00024931,3]
[329355533,1718277070415,-500.0,0.00024931,3]
[329355534,1718277070430,-189.254727,0.00024931,7]
[329355535,1718277070454,-500.0,0.00024931,3]
[329355536,1718277070471,-189.254727,0.00024931,7]
[329355537,1718277070488,-500.0,0.00024931,3]
[329355538,1718277070502,-296.49609881,0.00024931,3]
[329355539,1718277070519,-500.0,0.00024931,3]
[329355540,1718277070534,-500.0,0.00024931,3]
[329355541,1718277070548,-500.0,0.00024931,3]
[329355542,1718277070571,-528.90164902,0.00024931,3]
[329355543,1718277070594,-500.0,0.00024931,3]
[329355544,1718277070607,-500.0,0.00024931,3]
[329355545,1718277070621,-500.0,0.00024931,3]
[329355546,1718277070637,-500.0,0.00024931,3]
[329355547,1718277070663,-500.0,0.00024931,3]
[329355548,1718277070675,-605.49619974,0.00024931,3]
[329355549,1718277070694,-500.0,0.00024931,3]
[329355550,1718277070714,-500.0,0.00024931,3]
[329355551,1718277070729,-500.0,0.00024931,3]
[329355552,1718277070750,-500.0,0.00024931,3]
[329355553,1718277070766,-500.0,0.00024931,3]
[329355554,1718277070791,-500.0,0.00024931,3]
[329355555,1718277070811,-500.0,0.00024931,3]
[329355556,1718277070828,-500.0,0.00024931,3]
[329355557,1718277070848,-500.0,0.00024931,3]
[329355558,1718277070865,-151.0,0.00024931,7]
[329355559,1718277070894,-500.0,0.00024931,3]
[329355560,1718277070916,-500.0,0.00024931,3]
[329355561,1718277070937,-151.0,0.00024931,7]
[329355562,1718277070961,-500.0,0.00024931,3]
[329355563,1718277070979,-151.0,0.00024931,7]
[329355564,1718277070996,-184.1271952,0.00024931,3]
[329355565,1718277071011,-500.0,0.00024931,3]
[329355566,1718277071032,-500.0,0.00024931,3]
[329355567,1718277071048,-500.0,0.00024931,3]
[329355568,1718277071062,-151.0,0.00024931,7]
[329355569,1718277071077,-151.0,0.00024931,7]
[329355570,1718277071089,-204.20524,0.00024931,7]
[329355571,1718277071105,-172.0,0.0002497,15]
[329355572,1718277071127,-150.5,0.0002497,15]
[329355573,1718277071150,-172.0,0.0002498,15]
[329355574,1718277071168,-150.5,0.0002498,15]
[329355575,1718277071187,-172.0,0.0002499,15]
[329355576,1718277071229,-150.5,0.0002499,15]
[329355577,1718277071242,-2518.74915114,0.00024999,3]
[329355578,1718277071254,-261.170588,0.00024999,7]
[329355579,1718277071267,-3563.96,0.00024999,3]
[329355580,1718277071283,-3563.96,0.00024999,3]
[329355581,1718277071316,-3563.96,0.00024999,3]
[329355582,1718277071332,-3563.96,0.00024999,3]
[329355583,1718277071347,-3563.96,0.00024999,3]
[329355584,1718277071362,-3563.96,0.00024999,3]
[329355585,1718277071376,-3563.96,0.00024999,3]
[329355586,1718277071391,-3563.96,0.00024999,3]
[329355587,1718277071402,-23996.07053506,0.00025,2]
[329355588,1718277071413,-17111.4300126,0.00025,2]
[329355589,1718277071426,-929.09920929,0.00025,2]
[329355590,1718277071441,-785601.05798626,0.00025,2]
[329355591,1718277071468,-1000000.0,0.00025,3]
[329355592,1718277071484,-2621.87849211,0.00025,2]
[329355593,1718277071498,-2017.61,0.00025,2]
[329355594,1718277071515,-1277.92734148,0.00025,2]
[329355595,1718277071528,-1350.0,0.00025,2]
[329355596,1718277071552,-151.0,0.00025,7]
[329355597,1718277071570,-151.0,0.00025,7]
[329355598,1718277071584,-151.0,0.00025,7]
[329355599,1718277071601,-189.254727,0.00025,7]
[329355600,1718277071616,-189.254727,0.00025,7]
[329355601,1718277071627,-189.254727,0.00025,7]
[329355602,1718277071637,-189.254727,0.00025,7]
[329355603,1718277071651,-151.0,0.00025,7]
[329355604,1718277071666,-151.0,0.00025,7]
[329355605,1718277071681,-151.0,0.00025,7]
[329355606,1718277071696,-151.0,0.00025,7]
[329355607,1718277071710,-151.0,0.00025,7]
[329355608,1718277071727,-151.0,0.00025,7]
[329355609,1718277071743,-151.0,0.00025,7]
[329355610,1718277071764,-151.0,0.00025,7]
[329355611,1718277071779,-265.110664,0.00025,7]
[329355612,1718277071793,-151.0,0.00025,7]
[329355613,1718277071806,-151.0,0.00025,7]
[329355614,1718277071820,-151.0,0.00025,7]
[329355615,1718277071841,-151.0,0.00025,7]
[329355616,1718277071855,-151.0,0.00025,7]
[329355617,1718277071870,-151.0,0.00025,7]
[329355618,1718277071882,-151.0,0.00025,7]
[329355619,1718277071897,-151.0,0.00025,7]
[329355620,1718277071911,-151.0,0.00025,7]
[329355621,1718277071926,-151.0,0.00025,7]
[329355622,1718277071944,-151.0,0.00025,7]
[329355623,1718277071968,-151.0,0.00025,7]
[329355624,1718277071997,-832.352126,0.00025,7]
[329355625,1718277072010,-832.352126,0.00025,7]
[329355626,1718277072029,-832.352126,0.00025,7]
[329355627,1718277072046,-832.352126,0.00025,7]
[329355628,1718277072060,-151.0,0.00025,7]
[329355629,1718277072072,-151.0,0.00025,7]
[329355630,1718277072084,-151.0,0.00025,7]
[329355631,1718277072098,-229.502658,0.00025,7]
[329355632,1718277072114,-1000.0,0.00025001,2]
[329355633,1718277072126,-453.25,0.00025009,2]
[329355634,1718277072139,-172.47,0.00025027,2]
[329355635,1718277072150,-628.5,0.00025044,3]
[329355636,1718277072161,-877.35,0.00025044,3]
[329355637,1718277072172,-1070.7,0.00025044,3]
[329355638,1718277072183,-500.0,0.00025044,3]
[329355639,1718277072194,-871.84,0.00025044,3]
[329355640,1718277072250,-1196.79,0.00025044,3]
[329355641,1718277072263,-2448.85,0.00025044,3]
[329355642,1718277072281,-748.9,0.00025044,3]
[329355643,1718277072296,-1584.05,0.00025044,3]
[329355644,1718277072308,-875.77,0.00025044,3]
[329355645,1718277072320,-896.33,0.00025044,3]
[329355646,1718277072332,-1393.21,0.00025044,3]
[329355647,1718277072344,-712.29,0.00025044,3]
[329355648,1718277072356,-3021.74,0.00025044,3]
[329355649,1718277072368,-2955.13,0.00025044,3]
[329355650,1718277072379,-1592.21,0.00025044,3]
[329355651,1718277072389,-1489.31,0.00025044,3]
[329355652,1718277072400,-1351.15,0.00025044,3]
[329355653,1718277072414,-1841.9,0.00025044,3]
[329355654,1718277072429,-1097.22,0.00025044,3]
[329355655,1718277072447,-500.0,0.00025044,3]
[329355656,1718277072461,-1562.15,0.00025044,3]
[329355657,1718277072482,-500.0,0.00025044,3]
[329355658,1718277072496,-500.0,0.00025044,3]
[329355659,1718277072521,-500.0,0.00025044,3]
[329355660,1718277072536,-500.0,0.00025044,3]
[329355661,1718277072553,-500.0,0.00025044,3]
[329355662,1718277072571,-500.0,0.00025044,3]
[329355663,1718277072587,-500.0,0.00025044,3]
[329355664,1718277072608,-500.0,0.00025044,3]
[329355665,1718277072623,-1074.6,0.00025045,3]
[329355666,1718277072634,-31357.31,0.00025045,3]
[329355667,1718277072652,-1670.36,0.00025045,3]
[329355668,1718277072664,-1382.88,0.00025045,3]
[329355669,1718277072675,-739.94,0.00025045,3]
[329355670,1718277072693,-892.4,0.00025045,3]
[329355671,1718277072710,-1184.9,0.00025045,3]
[329355672,1718277072723,-585.64,0.00025045,3]
[329355673,1718277072736,-929.82,0.00025045,3]
[329355674,1718277072756,-623.27,0.00025045,3]
[329355675,1718277072767,-1120.48,0.00025045,3]
[329355676,1718277072780,-500.0,0.00025046,3]
[329355677,1718277072792,-500.0,0.00025046,3]
[329355678,1718277072804,-500.0,0.00025046,3]
[329355679,1718277072821,-500.0,0.00025046,3]
[329355680,1718277072836,-600.39070288,0.00025046,3]
[329355681,1718277072848,-500.0,0.00025046,3]
[329355682,1718277072862,-500.0,0.00025046,3]
[329355683,1718277072880,-500.0,0.00025046,3]
[329355684,1718277072902,-500.0,0.00025046,3]
[329355685,1718277072913,-500.0,0.00025046,3]
[329355686,1718277072938,-500.0,0.00025046,3]
[329355687,1718277072955,-742.23504748,0.00025046,10]
[329355688,1718277072980,-500.0,0.00025046,3]
[329355689,1718277072991,-500.0,0.00025046,3]
[329355690,1718277073006,-500.0,0.00025046,3]
[329355691,1718277073020,-500.0,0.00025046,3]
[329355692,1718277073038,-500.0,0.00025046,3]
[329355693,1718277073051,-570.13328872,0.00025046,3]
[329355694,1718277073067,-500.0,0.00025046,3]
[329355695,1718277073080,-500.0,0.00025046,3]
[329355696,1718277073093,-500.0,0.00025046,3]
[329355697,1718277073106,-500.0,0.00025046,3]
[329355698,1718277073122,-500.0,0.00025046,3]
[329355699,1718277073136,-500.0,0.00025046,3]
[329355700,1718277073154,-500.0,0.00025046,3]
[329355701,1718277073165,-500.0,0.00025046,3]
[329355702,1718277073177,-500.0,0.00025046,3]
[329355703,1718277073189,-500.0,0.00025046,3]
[329355704,1718277073219,-500.0,0.00025046,3]
[329355705,1718277073231,-500.0,0.00025046,3]
[329355706,1718277073242,-500.0,0.00025046,3]
[329355707,1718277073385,-500.0,0.00025046,3]
[329355708,1718277073403,-500.0,0.00025046,3]
[329355709,1718277073415,-500.0,0.00025046,3]
[329355710,1718277073425,-500.0,0.00025046,3]
[329355711,1718277073436,-500.0,0.00025046,3]
[329355712,1718277073451,-570.9243852,0.00025046,3]
[329355713,1718277073464,-500.0,0.00025046,3]
[329355714,1718277073484,-500.0,0.00025046,3]
[329355715,1718277073496,-552.49173241,0.00025046,3]
[329355716,1718277073510,-463.47025983,0.00025046,3]
[329355717,1718277073523,-653.07,0.00025046,3]
[329355718,1718277073543,-239.16152221,0.00025046,3]
[329355719,1718277073570,-157.18640589,0.00025046,3]
[329355720,1718277073600,-500.0,0.00025046,3]
[329355721,1718277073629,-500.0,0.00025046,3]
[329355722,1718277073661,-500.0,0.00025046,3]
[329355723,1718277073688,-500.0,0.00025046,3]
[329355724,1718277073702,-500.0,0.00025046,3]
[329355725,1718277073720,-500.0,0.00025046,3]
[329355726,1718277073742,-500.0,0.00025046,3]
[329355727,1718277073758,-500.0,0.00025046,3]
[329355728,1718277073779,-1199.36,0.00025046,3]
[329355729,1718277073791,-500.0,0.00025046,3]
[329355730,1718277073803,-500.0,0.00025046,3]
[329355731,1718277073817,-500.0,0.00025046,3]
[329355732,1718277073829,-172.84122269,0.00025046,3]
[329355733,1718277073840,-532.98614121,0.00025046,3]
[329355734,1718277073865,-500.0,0.00025046,3]
[329355735,1718277073876,-533.29444136,0.00025046,3]
[329355736,1718277073892,-500.0,0.00025046,3]
[329355737,1718277073906,-500.0,0.00025046,3]
[329355738,1718277073926,-500.0,0.00025046,3]
[329355739,1718277073939,-641.51381531,0.00025046,3]
[329355740,1718277073961,-500.0,0.00025046,3]
[329355741,1718277073976,-500.0,0.00025046,3]
[329355742,1718277073988,-500.0,0.00025046,3]
[329355743,1718277074003,-500.0,0.00025046,3]
[329355744,1718277074017,-500.0,0.00025046,3]
[329355745,1718277074032,-500.0,0.00025046,3]
[329355746,1718277074046,-500.0,0.00025046,3]
[329355747,1718277074075,-500.0,0.00025046,3]
[329355748,1718277074095,-500.0,0.00025046,3]
[329355749,1718277074127,-500.0,0.00025046,3]
[329355750,1718277074171,-760.53,0.00025046,3]
[329355751,1718277074185,-500.0,0.00025046,3]
[329355752,1718277074198,-500.0,0.00025046,3]
[329355753,1718277074229,-500.0,0.00025046,3]
[329355754,1718277074244,-500.0,0.00025046,3]
[329355755,1718277074269,-500.0,0.00025046,3]
[329355756,1718277074283,-500.0,0.00025046,3]
[329355757,1718277074295,-500.0,0.00025046,3]
[329355758,1718277074321,-500.0,0.00025046,3]
[329355759,1718277074334,-500.0,0.00025046,3]
[329355760,1718277074361,-555.95356023,0.00025046,3]
[329355761,1718277074372,-500.0,0.00025046,3]
[329355762,1718277074387,-500.0,0.00025046,3]
[329355763,1718277074400,-500.0,0.00025046,3]
[329355764,1718277074414,-500.0,0.00025046,3]
[329355765,1718277074428,-500.0,0.00025046,3]
[329355766,1718277074442,-500.0,0.00025046,3]
[329355767,1718277074457,-500.0,0.00025046,3]
[329355768,1718277074473,-1016.21,0.00025046,3]
[329355769,1718277074487,-500.0,0.00025046,3]
[329355770,1718277074509,-500.0,0.00025046,3]
[329355771,1718277074528,-500.0,0.00025046,3]
[329355772,1718277074542,-500.0,0.00025046,3]
[329355773,1718277074564,-500.0,0.00025046,3]
[329355774,1718277074603,-803.45,0.00025046,3]
[329355775,1718277074624,-500.0,0.00025046,3]
[329355776,1718277074680,-500.0,0.00025046,3]
[329355777,1718277074729,-500.0,0.00025046,3]
[329355778,1718277074757,-500.0,0.00025046,3]
[329355779,1718277074774,-500.0,0.00025046,3]
[329355780,1718277074788,-500.0,0.00025046,3]
[329355781,1718277074799,-500.0,0.00025046,3]
[329355782,1718277074814,-500.0,0.00025046,3]
[329355783,1718277074828,-913.83,0.00025046,3]
[329355784,1718277074842,-500.0,0.00025046,3]
[329355785,1718277074859,-500.0,0.00025046,3]
[329355786,1718277074875,-385.75872684,0.00025046,3]
[329355787,1718277074898,-878.65,0.00025046,3]
[329355788,1718277074920,-2296.66,0.00025046,3]
[329355789,1718277074935,-500.0,0.00025046,3]
[329355790,1718277074952,-762.45,0.00025046,3]
[329355791,1718277074969,-500.0,0.00025046,3]
[329355792,1718277074981,-555.03,0.00025046,3]
[329355793,1718277074999,-1924.86,0.00025046,3]
[329355794,1718277075014,-500.0,0.00025046,3]
[329355795,1718277075032,-500.0,0.00025046,3]
[329355796,1718277075064,-1949.34,0.00025046,3]
[329355797,1718277075077,-3080.34,0.00025046,3]
[329355798,1718277075091,-500.0,0.00025046,3]
[329355799,1718277075104,-500.0,0.00025046,3]
[329355800,1718277075115,-500.0,0.00025046,3]
[329355801,1718277075125,-500.0,0.00025046,3]
[329355802,1718277075141,-500.0,0.00025046,3]
[329355803,1718277075160,-500.0,0.00025046,3]
[329355804,1718277075201,-907.62,0.00025046,3]
[329355805,1718277075230,-525.39,0.00025046,3]
[329355806,1718277075257,-500.0,0.00025046,3]
[329355807,1718277075273,-527.25867461,0.00025046,3]
[329355808,1718277075298,-985.91,0.00025046,3]
[329355809,1718277075321,-500.0,0.00025046,3]
[329355810,1718277075342,-515.39783737,0.00025046,3]
[329355811,1718277075367,-2729.07,0.00025046,3]
[329355812,1718277075389,-500.0,0.00025046,3]
[329355813,1718277075409,-3064.01,0.00025046,3]
[329355814,1718277075429,-640.1,0.00025046,3]
[329355815,1718277075448,-832.352126,0.00025046,7]
[329355816,1718277075469,-500.0,0.00025046,3]
[329355817,1718277075496,-500.0,0.00025046,3]
[329355818,1718277075509,-3563.96,0.00025046,3]
[329355819,1718277075528,-832.352126,0.00025046,7]
[329355820,1718277075540,-500.0,0.00025046,3]
[329355821,1718277075565,-151.0,0.00025046,7]
[329355822,1718277075596,-500.0,0.00025046,3]
[329355823,1718277075616,-500.0,0.00025046,3]
[329355824,1718277075646,-500.0,0.00025046,3]
[329355825,1718277075669,-2850.36,0.00025046,3]
[329355826,1718277075693,-500.0,0.00025047,3]
[329355827,1718277075705,-500.0,0.00025047,3]
[329355828,1718277075727,-500.0,0.00025047,3]
[329355829,1718277075739,-555.89339514,0.00025047,3]
[329355830,1718277075752,-500.0,0.00025047,3]